fUSD/lending_fUSD_20241230
["ID","MTS","AMOUNT","RATE_DAILY","PERIOD"]
[347216609,1735583433117,-150.0,0.00012345,2]
[347216610,1735583433127,-150.0,0.00012349,2]
[347216611,1735583433137,-150.0,0.0001236,2]
[347216612,1735583433147,-246.55527342,0.0001237,2]
[347216613,1735583433158,-3000.0,0.0001237,2]
[347216614,1735583433167,-2013.0,0.00012374,2]
[347216615,1735583433177,-150.0,0.0001238,2]
[347216616,1735583433187,-150.0,0.00012381,2]
[347216617,1735583433196,-150.0,0.00012391,2]
[347216618,1735583433206,-150.0,0.00012394,2]
[347216619,1735583433216,-3403.96354238,0.00012399,2]
[347216620,1735583433226,-3403.96354237,0.00012399,2]
[347216621,1735583433236,-3403.96354237,0.00012399,2]
[347216622,1735583433245,-3403.96354237,0.00012399,2]
[347216623,1735583433255,-3403.96354237,0.00012399,2]
[347216624,1735583433265,-3403.96354237,0.00012399,2]
[347216625,1735583433275,-3403.96354237,0.00012399,2]
[347216626,1735583433285,-3403.96354237,0.00012399,2]
[347216627,1735583433295,-3403.96354237,0.00012399,2]
[347216628,1735583433305,-990.66018289,0.00012399,2]
[347216629,1735583433314,-157.77040212,0.00012399,2]
[347216630,1735583433324,-603.0864,0.000124,2]
[347216631,1735583433334,-787.212,0.000124,2]
[347216632,1735583433344,-281.21244,0.000124,2]
[347216633,1735583433354,-222028.69577199,0.000124,2]
[347216634,1735583433363,-157.77040212,0.000124,2]
[347216635,1735583433373,-934.46973873,0.000124,2]
[347216636,1735583433383,-700.0,0.000124,4]
[347216637,1735583433393,-987.95251622,0.000124,2]
[347216638,1735583433402,-2115.78485001,0.000124,2]
[347216639,1735583433412,-3403.96354237,0.000124,2]
[347216640,1735583433421,-1276.1102652,0.000124,2]
[347216641,1735583433431,-200.0,0.00012402,2]
[347216642,1735583433440,-3043.43,0.00012408,2]
[347216643,1735583433450,-174.343,0.00012408,2]
[347216644,1735583433463,-150.0,0.0001241,2]
[347216645,1735583433473,-150.0,0.0001241,2]
[347216646,1735583433483,-150.0,0.00012427,2]
[347216647,1735583433493,-150.0,0.00012431,2]
[347216648,1735583433507,-200.99,0.00012436,2]
[347216649,1735583433517,-150.0,0.0001244,2]
[347216650,1735583433527,-150.0,0.00012441,2]
[347216651,1735583433538,-947.96573503,0.00012443,2]
[347216652,1735583433548,-150.0,0.00012445,2]
[347216653,1735583433558,-150.0,0.00012448,2]
[347216654,1735583433567,-150.0,0.00012457,2]
[347216655,1735583433579,-150.0,0.00012461,2]
[347216656,1735583433589,-150.0,0.00012463,2]
[347216657,1735583433599,-150.0,0.00012465,2]
[347216658,1735583433608,-150.0,0.00012467,2]
[347216659,1735583433622,-500.0,0.00012473,2]
[347216660,1735583433632,-500.0,0.00012473,2]
[347216661,1735583433643,-150.0,0.00012477,2]
[347216662,1735583433653,-150.0,0.00012483,2]
[347216663,1735583433663,-150.0,0.00012487,2]
[347216664,1735583433674,-150.0,0.00012487,2]
[347216665,1735583433684,-150.0,0.00012488,2]
[347216666,1735583433694,-260.0,0.0001249,2]
[347216667,1735583433704,-265.16044038,0.00012493,2]
[347216668,1735583433714,-150.0,0.00012493,2]
[347216669,1735583433723,-150.0,0.00012493,2]
[347216670,1735583433733,-150.0,0.00012493,2]
[347216671,1735583433743,-925.43,0.00012493,2]
[347216672,1735583433752,-150.0,0.00012493,2]
[347216673,1735583433761,-150.0,0.00012493,2]
[347216674,1735583433771,-150.0,0.00012493,2]
[347216675,1735583433781,-150.0,0.00012493,2]
[347216676,1735583433790,-150.0,0.00012493,2]
[347216677,1735583433799,-150.0,0.00012493,2]
[347216678,1735583433809,-150.0,0.00012493,2]
[347216679,1735583433818,-150.0,0.00012493,2]
[347216680,1735583433828,-150.0,0.00012493,2]
[347216681,1735583433837,-150.0,0.00012493,2]
[347216682,1735583433846,-831.2594786,0.00012496,2]
[347216683,1735583433855,-7644.0306313,0.00012496,2]
[347216684,1735583433867,-500.0,0.00012498,2]
[347216685,1735583433876,-500.0,0.00012498,2]
[347216686,1735583433886,-334.9,0.00012498,2]
[347216687,1735583433895,-500.0,0.00012498,2]
[347216688,1735583433905,-504.60369547,0.00012498,2]
[347216689,1735583433915,-500.0,0.00012498,2]
[347216690,1735583433924,-500.0,0.00012498,2]
[347216691,1735583433933,-500.0,0.00012498,2]
[347216692,1735583433943,-500.0,0.00012498,2]
[347216693,1735583433953,-500.0,0.00012498,2]
[347216694,1735583433962,-500.0,0.00012498,2]
[347216695,1735583433972,-500.0,0.00012498,2]
[347216696,1735583433981,-500.0,0.00012498,2]
[347216697,1735583433992,-353.1841143,0.00012498,2]
[347216698,1735583434001,-306.72078791,0.00012498,2]
[347216699,1735583434010,-500.0,0.00012498,2]
[347216700,1735583434019,-53220.54874093,0.00012499,2]
[347216701,1735583434029,-221986.18544083,0.00012499,2]
[347216702,1735583434038,-47368.51215043,0.00012499,2]
[347216703,1735583434206,-386.1976441,0.00012499,2]
[347216704,1735583434218,-654.12405432,0.00012499,2]
[347216705,1735583434230,-929.0145636,0.00012499,2]
[347216931,1735583438112,-636.0,0.00012374,2]
[347216932,1735583438123,-28922.52158755,0.00012499,2]
[347216933,1735583438132,-254118.89065094,0.00012499,2]
[347216934,1735583438142,-744715.75838797,0.00012499,2]
[347216935,1735583438151,-180.1454058,0.00012499,2]
[347216936,1735583438160,-946.49,0.00012499,2]
[347216937,1735583438170,-60109.02800227,0.00012499,2]
[347216938,1735583438179,-2136344.54913193,0.00012499,2]
[347216939,1735583438208,-5680.29847286,0.00012499,2]
[347216940,1735583438232,-22499.44337261,0.00012499,2]
[347216941,1735583438243,-86508.34457891,0.00012499,2]
[347216942,1735583438311,-352.10604785,0.00012374,2]
[347216943,1735583438323,-819.89395215,0.00012374,2]
[347216944,1735583438332,-559.45304245,0.00012499,2]
[347216945,1735583438343,-461244.04533547,0.00012499,2]
[347216946,1735583438368,-7031.0,0.00012499,2]
[347216947,1735583438393,-464.54032843,0.00012499,2]
[347216948,1735583438440,-1890.08,0.00012499,2]
[347216949,1735583438451,-68357.03431997,0.00012499,2]
[347216950,1735583438463,-925.1,0.00012499,2]
[347216951,1735583438474,-275.82630924,0.00012499,2]
[347216952,1735583438490,-13260.0,0.00012499,2]
[347216954,1735583438510,-590.4680997,0.00012499,2]
[347217110,1735583440101,-74163.4758621,0.00012499,2]
[347217147,1735583440441,-9.90184422,0.00012499,2]
[347217149,1735583440452,-2381.40028013,0.00012499,2]
[347217151,1735583440463,-1606.6892925,0.00012499,2]
[347217154,1735583440474,-2399.38195,0.00012499,2]
[347217157,1735583440494,-2033.6905218,0.00012499,2]
[347217167,1735583440589,-466.18095562,0.00012499,2]
[347217170,1735583440600,-823.431,0.00012499,2]
[347217172,1735583440611,-509.59999992,0.00012499,2]
[347217175,1735583440635,-3078.99563179,0.00012499,2]
[347217180,1735583440670,-472.225,0.00012499,2]
[347217217,1735583441076,-945.8919,0.00012499,2]
[347217219,1735583441088,-495.6,0.00012499,2]
[347217226,1735583441144,-14993.95356506,0.00012499,2]
[347217429,1735583443108,-5642.4997,0.00012499,2]
[347217445,1735583443250,-3576.9,0.00012499,2]
[347217452,1735583443307,-4863.64164733,0.00012499,2]
[347217454,1735583443318,-500.0,0.00012499,2]
[347217456,1735583443329,-1707.8,0.00012499,2]
[347217466,1735583443411,-108570.57214953,0.00012499,2]
[347217468,1735583443424,-15484.74335528,0.00012499,2]
[347217470,1735583443435,-6597.02326901,0.00012499,2]
[347217658,1735583446456,-267.13813401,0.00012499,2]
[347217661,1735583446823,-963.3654599,0.00012499,2]
[347217662,1735583446834,-7952.07334636,0.00012499,2]
[347217663,1735583446845,-389.39068286,0.00012499,2]
[347217664,1735583446856,-363.3464882,0.00012499,2]
[347217665,1735583446867,-2168.3280205,0.00012499,2]
[347217666,1735583446878,-23688.5,0.00012499,2]
[347217667,1735583446890,-581.87,0.00012499,2]
[347217668,1735583446928,-180.02318565,0.00012399,2]
[347217669,1735583446938,-674.90399014,0.00012499,2]
[347217670,1735583446949,-523.91290512,0.00012499,2]
[347217671,1735583446959,-1800.0,0.00012499,2]
[347217672,1735583446971,-51009.38434,0.00012499,2]
[347217673,1735583446996,-18767.11344377,0.00012499,2]
[347217674,1735583548658,1432.91,9.563e-05,2]
[347217675,1735583549638,4871.69933963,0.00011481,2]
[347217676,1735583549660,17042.38066037,0.00011481,2]
[347217677,1735583638100,970.02,0.00011411,2]
[347217678,1735583675521,274.3,0.0002,120]
[347217683,1735583857828,250.0,0.00011394,2]
[347217684,1735583891406,250.0,0.00011387,2]
[347217685,1735583924341,343.6,0.00010137,2]
[347217686,1735583937683,388.3382284,0.0001,2]
[347217687,1735583990387,250.0,0.00011347,2]
[347217688,1735584014962,400.0,0.00011345,2]
[347217689,1735584296699,660.82,0.0001125,2]
[347217690,1735584297384,10449.2417716,0.0001125,2]
[347217691,1735584297406,10000.0,0.0001125,2]
[347217692,1735584297427,3450.7582284,0.0001125,2]
[347217693,1735584392737,1000.0,0.00011244,2]
[347217694,1735584436159,-337.46649264,0.00011529,2]
[347217695,1735584436184,-208.69374742,0.00011579,2]
[347217696,1735584436207,-194.87955246,0.00011629,2]
[347217697,1735584467683,164.78,0.00011256,2]
[347217698,1735584470912,735.88,0.0001126,2]
[347217711,1735584551921,1361.26,9.391e-05,2]
[347217720,1735584632476,-297.99044754,0.00011629,2]
[347217721,1735584632486,-495.29,0.0001164,2]
[347217722,1735584632495,-150.0,0.00011644,2]
[347217723,1735584632506,-491.23,0.0001165,2]
[347217724,1735584632515,-300.0,0.00011654,2]
[347217725,1735584632528,-1361.26,0.00011655,2]
[347217726,1735584632537,-1540.81322537,0.00011679,2]
[347217727,1735584632632,-25233.42135926,0.00011679,2]
[347217728,1735584632800,-37269.06541537,0.00011679,2]
[347217729,1735584632810,-500.49,0.00011679,2]
[347217730,1735584632820,-495.36,0.00011679,2]
[347217731,1735584632829,-506.97,0.0001168,2]
[347217732,1735584632841,-508.98,0.0001168,2]
[347217733,1735584632852,-502.74,0.0001168,2]
[347217734,1735584632863,-499.0,0.0001168,2]
[347217735,1735584632872,-494.28,0.0001168,2]
[347217736,1735584632882,-506.57,0.0001168,2]
[347217737,1735584632891,-506.23,0.0001168,2]
[347217738,1735584632902,-1405.27,0.0001168,2]
[347217739,1735584632912,-166.0,0.00011746,2]
[347217740,1735584632921,-201.0,0.00011758,2]
[347217741,1735584632931,-685.878,0.0001188,2]
[347217742,1735584632941,-599.0,0.00012007,2]
[347217743,1735584632950,-429.15546045,0.00012155,2]
[347217744,1735584632960,-151.47,0.0001218,2]
[347217745,1735584632969,-239.39,0.000122,2]
[347217746,1735584632978,-978.41,0.000122,2]
[347217747,1735584632987,-150.0,0.000122,2]
[347217748,1735584632998,-978.41,0.000122,2]
[347217749,1735584633007,-1116.24372433,0.00012249,2]
[347217750,1735584633017,-1069.59910831,0.00012249,2]
[347217751,1735584633026,-1071.14643691,0.00012249,2]
[347217752,1735584633036,-496.52,0.00012249,2]
[347217753,1735584633045,-504.74,0.00012249,2]
[347217754,1735584633055,-150.0,0.00012282,2]
[347217755,1735584633066,-166.0,0.00012282,2]
[347217756,1735584633076,-166.0,0.00012282,2]
[347217757,1735584633086,-201.01,0.00012282,2]
[347217758,1735584633097,-1000.0,0.00012299,2]
[347217759,1735584633106,-552.5209,0.000123,2]
[347217760,1735584633117,-500.0,0.000123,2]
[347217761,1735584633126,-476.81,0.000123,2]
[347217762,1735584633136,-150.0,0.000123,2]
[347217763,1735584633145,-182.76,0.000123,2]
[347217764,1735584633155,-150.0,0.000123,2]
[347217765,1735584633165,-182.76,0.000123,2]
[347217766,1735584633175,-182.76,0.000123,2]
[347217767,1735584633464,-182.76,0.000123,2]
[347217768,1735584633499,-181.37,0.000123,2]
[347217769,1735584633510,-422.9386,0.000123,2]
[347217770,1735584633520,-150.0,0.00012311,2]
[347217771,1735584633529,-150.0,0.00012319,2]
[347217772,1735584633538,-150.0,0.00012321,2]
[347217773,1735584633548,-3000.0,0.0001237,2]
[347217774,1735584633558,-3000.0,0.0001237,2]
[347217775,1735584633568,-164.78,0.00012382,2]
[347217776,1735584633578,-5430.19864366,0.00012399,2]
[347217777,1735584633589,-5430.19864361,0.00012399,2]
[347217778,1735584633599,-5430.19864361,0.00012399,2]
[347217779,1735584633610,-500.0,0.00012399,2]
[347217780,1735584633619,-500.0,0.000124,2]
[347217781,1735584633629,-15858.7816,0.000124,2]
[347217782,1735584633638,-790.4088,0.000124,2]
[347217783,1735584633648,-14147.1723,0.000124,2]
[347217784,1735584633658,-3739.1399,0.000124,2]
[347217785,1735584633667,-296.61647305,0.000124,2]
[347217786,1735584633678,-300.22952436,0.000124,2]
[347217787,1735584633687,-500.0,0.000124,2]
[347217788,1735584633696,-500.0,0.000124,2]
[347217789,1735584633706,-2000.0,0.000124,2]
[347217790,1735584633715,-500.0,0.000124,2]
[347217791,1735584633725,-200.0,0.000124,2]
[347217792,1735584633734,-158.51923001,0.000124,2]
[347217793,1735584633744,-4269.46879481,0.000124,2]
[347217794,1735584633753,-340.29607072,0.000124,2]
[347217795,1735584633763,-425.29077524,0.000124,2]
[347217796,1735584633773,-150.0,0.00012401,2]
[347217797,1735584633783,-200.0,0.00012403,2]
[347217798,1735584633792,-2742.911,0.00012425,2]
[347217799,1735584633802,-173.222,0.00012425,2]
[347217800,1735584633812,-150.0,0.0001244,2]
[347217801,1735584633821,-1403.71354053,0.0001247,2]
[347217802,1735584633831,-501.37953894,0.0001247,2]
[347217803,1735584633842,-500.0,0.00012473,2]
[347217804,1735584633852,-500.0,0.00012473,2]
[347217805,1735584633864,-300.0,0.00012483,2]
[347217806,1735584633873,-19884.65877375,0.00012485,2]
[347217807,1735584633882,-150.0,0.00012485,2]
[347217808,1735584633892,-150.0,0.0001249,2]
[347217809,1735584633902,-500.0,0.00012499,2]
[347217810,1735584633912,-500.0,0.00012499,2]
[347217811,1735584633921,-571.84044288,0.00012499,2]
[347217812,1735584633931,-927.89,0.00012499,2]
[347217813,1735584633941,-495.71,0.00012499,2]
[347217814,1735584633950,-43392.11223206,0.000125,2]
[347217815,1735584633959,-26755.29173458,0.000125,2]
[347217816,1735584633972,-31787.65069567,0.000125,2]
[347217817,1735584633983,-9502.77210555,0.000125,2]
[347217818,1735584638536,-5430.19864361,0.00012399,2]
[347217819,1735584638545,-180.02318564,0.000124,2]
[347217820,1735584638554,-1660.54504275,0.000125,2]
[347217821,1735584638570,-2636.95,0.000125,2]
[347217822,1735584638587,-403.400028,0.000125,2]
[347217823,1735584638619,-1489.95403979,0.000125,2]
[347217824,1735584638630,-61750.5343288,0.000125,2]
[347217831,1735584638767,-3861.54541439,0.000125,2]
[347217967,1735584640294,-5829.85985594,0.00011654,2]
[347217970,1735584640305,-3151.84771964,0.00011654,2]
[347217979,1735584640386,-462.28166682,0.00011654,2]
[347217992,1735584640496,-340.925,0.00011654,2]
[347218000,1735584640556,-864.60574511,0.00011654,2]
[347218002,1735584640568,-364.96708586,0.00011654,2]
[347218004,1735584640579,-360.626445,0.00011654,2]
[347218328,1735584643657,-724.77855471,0.00011654,2]
[347218629,1735584646416,-613.15,0.00011654,2]
[347218631,1735584646428,-5338.89215194,0.00011654,2]
[347218632,1735584646439,-4351.52605,0.00011654,2]
[347218633,1735584646450,-476.44045658,0.00011654,2]
[347218642,1735584646641,-342.43251486,0.00011654,2]
[347218643,1735584646653,-293.83320488,0.00011654,2]
[347218645,1735584646709,-9093.7838471,0.00011654,2]
[347218646,1735584646719,-1144.82431962,0.0001225,2]
[347218647,1735584646728,-5430.19864361,0.00012399,2]
[347218648,1735584646737,-73237.04754951,0.000125,2]
[347218654,1735584804038,161.13,0.00010137,2]
[347218655,1735585088059,400.0,0.00011495,2]
[347218656,1735585117586,2726.1917716,0.00011436,2]
[347218657,1735585117606,3800.0551054,0.00011436,2]
[347218660,1735585330194,1346.23,0.00011409,2]
[347218661,1735585346240,250.0,0.00011401,2]
[347218662,1735585376308,1000.0,0.000114,2]
[347218664,1735585405763,1300.75,9.487e-05,2]
[347218665,1735585427448,2302.9648946,0.00011388,2]
[347218666,1735585427471,10000.0,0.00011388,2]
[347218667,1735585427494,10000.0,0.00011388,2]
[347218668,1735585427521,1597.0351054,0.00011388,2]
[347218674,1735585509103,150.0,0.00011244,2]
[347218675,1735585551854,824.7859,0.00011465,2]
[347218676,1735585597070,2759.38213332,0.00011481,2]
[347218677,1735585611111,-406.89381482,0.0001152,2]
[347218678,1735585635109,330.41,0.0001139,2]
[347218679,1735585642127,-407.10618518,0.0001152,2]
[347218680,1735585642151,-274.72,0.00011536,2]
[347218681,1735585642172,-4994.24,0.00011565,2]
[347218682,1735585642196,-250.0,0.00011581,2]
[347218683,1735585642220,-501.7,0.00011654,2]
[347218684,1735585642244,-508.73,0.00011654,2]
[347218685,1735585642267,-492.76,0.00011654,2]
[347218686,1735585642290,-500.14,0.00011654,2]
[347218687,1735585642315,-506.24,0.00011654,2]
[347218688,1735585642336,-200.0,0.00011712,2]
[347218689,1735585642357,-250.0,0.00011747,2]
[347218690,1735585642380,-1300.75,0.00011751,2]
[347218691,1735585642401,-166.76,0.00011842,2]
[347218692,1735585642424,-699.583,0.0001188,2]
[347218693,1735585642446,-450.0,0.00012,2]
[347218694,1735585642468,-4577.06015749,0.00012,2]
[347218695,1735585648100,-318.19354252,0.00012,2]
[347218700,1735585704437,183.26,0.00010137,2]
[347218705,1735585809289,250.0,0.00011421,2]
[347218711,1735585831852,-163.46,0.00011504,2]
[347218712,1735585831862,-498.42,0.00011709,2]
[347218713,1735585831872,-149.09479043,0.00011776,2]
[347218714,1735585831883,-346.28520957,0.00011776,2]
[347218715,1735585831893,-491.77,0.00011776,2]
[347218716,1735585831902,-500.97,0.00011864,2]
[347218717,1735585831912,-302.2171226,0.000119,2]
[347218718,1735585831921,-1445.06439806,0.00011901,2]
[347218719,1735585831933,-3162.77693481,0.00011901,2]
[347218720,1735585831943,-492.96,0.00011962,2]
[347218721,1735585831953,-300.0,0.00011999,2]
[347218722,1735585831963,-495.89,0.00012,2]
[347218723,1735585831972,-8758.8079341,0.00012,2]
[347218724,1735585832068,-20008.84163262,0.00012,2]
[347218725,1735585832079,-836.0,0.00012,2]
[347218726,1735585832091,-4237.39069681,0.00012,2]
[347218727,1735585832103,-809.55910396,0.00012,2]
[347218728,1735585832152,-525.00000005,0.00012,2]
[347218729,1735585832224,-71364.47469639,0.00012,2]
[347218871,1735585837980,-3442.65190197,0.00012,2]
[347218872,1735585837991,-42086.02033409,0.00012,2]
[347218873,1735585838000,-498.81,0.00012,2]
[347218874,1735585838009,-503.32,0.00012,2]
[347218875,1735585838018,-502.49,0.00012,2]
[347218876,1735585838027,-497.72,0.00012,2]
[347218877,1735585838037,-270.1625177,0.00012143,2]
[347218878,1735585838046,-1104.25632652,0.0001225,2]
[347218879,1735585838055,-1043.82172319,0.0001225,2]
[347218880,1735585838064,-1086.38537786,0.0001225,2]
[347218881,1735585838073,-2500.0,0.00012299,2]
[347218882,1735585838082,-508.12,0.000123,2]
[347218883,1735585838092,-3000.0,0.0001237,2]
[347218884,1735585838101,-4207.0,0.00012374,2]
[347218886,1735585838111,-3719.0,0.00012391,2]
[347218888,1735585838120,-536.0,0.00012391,2]
[347218890,1735585838129,-3011.95833842,0.00012399,2]
[347218892,1735585838138,-3011.95833839,0.00012399,2]
[347218894,1735585838148,-3011.95833839,0.00012399,2]
[347218896,1735585838157,-3011.95833839,0.00012399,2]
[347218898,1735585838166,-3011.95833839,0.00012399,2]
[347218900,1735585838175,-3011.95833839,0.00012399,2]
[347218902,1735585838185,-3011.95833839,0.00012399,2]
[347218903,1735585838194,-3011.95833839,0.00012399,2]
[347218906,1735585838205,-3011.95833839,0.00012399,2]
[347218907,1735585838215,-5000.0,0.00012399,2]
[347218909,1735585838224,-500.0,0.000124,2]
[347218911,1735585838233,-500.0,0.000124,2]
[347218913,1735585838243,-2000.0,0.000124,2]
[347218915,1735585838253,-500.0,0.000124,2]
[347218917,1735585838262,-200.0,0.000124,2]
[347218919,1735585838271,-188.75537636,0.000124,2]
[347218921,1735585838281,-2445.34730988,0.000124,2]
[347218923,1735585838290,-170.11631009,0.000124,2]
[347218925,1735585838299,-3011.95833839,0.000124,2]
[347218927,1735585838308,-3000.0,0.0001241,2]
[347218929,1735585838317,-3000.0,0.0001241,2]
[347218931,1735585838327,-2546.309,0.00012423,2]
[347218933,1735585838336,-172.325,0.00012423,2]
[347218936,1735585838347,-150.0,0.00012441,2]
[347218938,1735585838356,-3000.0,0.0001245,2]
[347218940,1735585838365,-3891.0,0.0001245,2]
[347218942,1735585838375,-9605.0,0.0001245,2]
[347218944,1735585838384,-181.295,0.0001245,2]
[347218946,1735585838393,-290.845,0.0001245,2]
[347218948,1735585838402,-1172.0,0.0001245,2]
[347218950,1735585838411,-500.0,0.00012473,2]
[347218952,1735585838420,-118045.94086832,0.0001248,2]
[347218954,1735585838429,-607.31730201,0.00012497,2]
[347218956,1735585838438,-949.5,0.00012499,2]
[347218958,1735585838448,-180.1454058,0.00012499,2]
[347218960,1735585838457,-590.68702372,0.00012499,2]
[347218962,1735585838466,-59446.76369608,0.000125,2]
[347218964,1735585838475,-2911171.41276001,0.000125,2]
[347219027,1735585839044,-8346.93467051,0.000125,2]
[347219031,1735585839073,-408.499957,0.000125,2]
[347219134,1735585840019,-295651.51755706,0.000125,2]
[347219136,1735585840030,-7618.07795771,0.000125,2]
[347219138,1735585840041,-980.44946021,0.000125,2]
[347219140,1735585840053,-1990.09577699,0.000125,2]
[347219181,1735585840520,-1606.229472,0.000125,2]
[347219183,1735585840531,-395.88,0.000125,2]
[347219185,1735585840542,-1018.73999999,0.000125,2]
[347219188,1735585840553,-686.24633394,0.000125,2]
[347219190,1735585840564,-10231.76292246,0.000125,2]
[347219310,1735585842769,-350.46,0.00012,2]
[347219311,1735585842780,-145.97,0.00012,2]
[347219312,1735585842789,-22345.7847035,0.000125,2]
[347219313,1735585842800,-862.28623216,0.000125,2]
[347219314,1735585842934,-6766.8835218,0.000125,2]
[347219315,1735585842950,-1006.68215539,0.000125,2]
[347219316,1735585842966,-1098.0000002,0.000125,2]
[347219317,1735585842980,-16203.8714953,0.000125,2]
[347219318,1735585842995,-521.57245347,0.000125,2]
[347219319,1735585843011,-1114.03823321,0.000125,2]
[347219320,1735585843026,-474.00111,0.000125,2]
[347219321,1735585843041,-931.13278959,0.000125,2]
[347219322,1735585843120,-401.0,0.000125,2]
[347219323,1735585843133,-135245.49433793,0.000125,2]
[347219324,1735585843146,-250.0,0.000125,2]
[347219325,1735585843157,-167.0,0.000125,2]
[347219326,1735585843172,-169891.2442478,0.000125,2]
[347219345,1735585846250,-500.0,0.00012473,2]
[347219346,1735585846261,-22287.37970422,0.000125,2]
[347219348,1735585846272,-441.64,0.000125,2]
[347219350,1735585846284,-6458.23079427,0.000125,2]
[347219352,1735585846295,-2213.15629143,0.000125,2]
[347219353,1735585846440,-7404.41532893,0.000125,2]
[347219354,1735585846451,-27103.36203295,0.000125,2]
[347219355,1735585846462,-615.73535481,0.000125,2]
[347219357,1735586286356,1315.21,9.63e-05,2]
[347219358,1735586368749,400.0,0.0001146,2]
[347219359,1735586426445,250.0,0.00011454,2]
[347219361,1735586513844,710.02,0.00011442,2]
[347219362,1735586519370,307.17,0.00011442,2]
[347219363,1735586584855,922.72686128,0.00011418,2]
[347219364,1735586584876,77.27313872,0.00011418,2]
[347219365,1735586703126,150.0,0.00011244,2]
[347219366,1735586719590,-300.0,0.00011515,2]
[347219367,1735586719616,-23900.0,0.00011516,2]
[347219368,1735586719640,-1994.96,0.00011702,2]
[347219369,1735586719666,-250.0,0.00011786,2]
[347219370,1735586719690,-506.22,0.00011857,2]
[347219371,1735586719714,-682.539,0.0001188,2]
[347219372,1735586719741,-1315.21,0.00011893,2]
[347219373,1735586719765,-404.7227,0.000119,2]
[347219374,1735586719788,-166.6,0.00011936,2]
[347219375,1735586720140,-500.0,0.00012073,2]
[347219376,1735586720165,-502.19,0.00012155,2]
[347219377,1735586720188,-1086.52156523,0.0001225,2]
[347219378,1735586720209,-1050.41704556,0.0001225,2]
[347219379,1735586720234,-507.18,0.0001225,2]
[347219380,1735586720256,-270.1625177,0.00012272,2]
[347219381,1735586720278,-771.32,0.000123,2]
[347219382,1735586720301,-437.44,0.000123,2]
[347219383,1735586720323,-771.32,0.000123,2]
[347219384,1735586720345,-437.44,0.000123,2]
[347219385,1735586720368,-215.43,0.000123,2]
[347219386,1735586720390,-437.44,0.000123,2]
[347219387,1735586720411,-2549.06324591,0.000123,2]
[347219388,1735586720433,-309.81,0.000123,2]
[347219389,1735586720459,-821.84,0.000123,2]
[347219390,1735586720485,-3000.0,0.0001237,2]
[347219391,1735586720512,-150.0,0.00012377,2]
[347219392,1735586720533,-6362.1739256,0.0001238,2]
[347219393,1735586767423,334.84,0.00010137,2]
[347219394,1735586850111,-5742.95830627,0.000119,2]
[347219395,1735586856907,4504.27557795,0.0001,2]
[347219425,1735587032049,-158.69715079,0.00011659,2]
[347219426,1735587032067,-91.30284921,0.00011659,2]
[347219427,1735587032077,-250.0,0.00011678,2]
[347219428,1735587032087,-300.0,0.00011899,2]
[347219429,1735587032096,-253.92245548,0.000119,2]
[347219430,1735587032150,-20272.60843325,0.000119,2]
[347219431,1735587032160,-2477.41185744,0.000119,2]
[347219432,1735587032170,-165.89,0.00011989,2]
[347219433,1735587032179,-450.0,0.00012,2]
[347219434,1735587032188,-507.93,0.00012132,2]
[347219435,1735587032197,-509.37,0.00012132,2]
[347219436,1735587032205,-507.93,0.00012132,2]
[347219438,1735587032214,-491.25,0.00012132,2]
[347219440,1735587032223,-504.2,0.00012132,2]
[347219442,1735587032232,-1131.76636702,0.00012132,2]